fUSD/lending_fUSD_20241222
["ID","MTS","AMOUNT","RATE_DAILY","PERIOD"]
[346358626,1734910246296,-500.0,0.00019726,2]
[346358627,1734910246305,-1058.28,0.00019726,2]
[346358628,1734910246315,-522.57,0.00019726,2]
[346358629,1734910246323,-720.85,0.00019726,2]
[346358630,1734910246333,-1535.34,0.00019726,2]
[346358632,1734910246342,-500.0,0.00019726,2]
[346358634,1734910246351,-500.0,0.00019726,2]
[346358636,1734910246361,-554.07,0.00019726,2]
[346358638,1734910246370,-1456.63,0.00019726,2]
[346358640,1734910246380,-500.0,0.00019726,2]
[346358642,1734910246390,-1703.14,0.00019726,2]
[346358644,1734910246399,-1076.6,0.00019726,2]
[346358646,1734910246408,-541.01,0.00019726,2]
[346358648,1734910246417,-810.45,0.00019726,2]
[346358650,1734910246426,-500.0,0.00019726,2]
[346358652,1734910246436,-2328.07,0.00019726,2]
[346358654,1734910246445,-681.07,0.00019726,2]
[346358656,1734910246455,-6474.27,0.00019726,2]
[346358658,1734910246464,-1233.86,0.00019726,2]
[346358660,1734910246473,-2347.35,0.00019726,2]
[346358662,1734910246482,-1393.86,0.00019726,2]
[346358664,1734910246491,-500.0,0.00019726,2]
[346358665,1734910246501,-500.0,0.00019726,2]
[346358666,1734910246510,-8219.46,0.00019726,2]
[346358667,1734910246520,-500.0,0.00019726,2]
[346358668,1734910246529,-504.05904739,0.00019726,2]
[346358669,1734910246539,-1585.37,0.00019726,2]
[346358670,1734910246548,-837.93,0.00019726,2]
[346358671,1734910246557,-500.0,0.00019726,2]
[346358672,1734910246566,-945.05,0.00019726,2]
[346358673,1734910246576,-835.49,0.00019726,2]
[346358674,1734910246587,-500.0,0.00019726,2]
[346358675,1734910246597,-904.27,0.00019726,2]
[346358676,1734910246606,-931.08,0.00019726,2]
[346358677,1734910246616,-859.24,0.00019726,2]
[346358678,1734910246625,-4999.79,0.00019726,2]
[346358679,1734910246635,-666.22,0.00019726,2]
[346358680,1734910246644,-1183.93,0.00019726,2]
[346358681,1734910246653,-1104.63,0.00019726,2]
[346358682,1734910246663,-994.67,0.00019726,2]
[346358683,1734910246672,-500.0,0.00019726,2]
[346358684,1734910246684,-500.0,0.00019726,2]
[346358685,1734910246694,-1708.16,0.00019726,2]
[346358686,1734910246703,-1140.18,0.00019726,2]
[346358687,1734910246713,-1504.43,0.00019726,2]
[346358688,1734910246723,-591.88,0.00019726,2]
[346358689,1734910246732,-1104.51,0.00019726,2]
[346358690,1734910246743,-500.0,0.00019726,2]
[346358691,1734910246752,-866.12,0.00019726,2]
[346358692,1734910246762,-565.92,0.00019726,2]
[346358693,1734910246772,-3088.71,0.00019726,2]
[346358694,1734910246782,-1718.08,0.00019726,2]
[346358695,1734910246792,-500.0,0.00019726,2]
[346358696,1734910246802,-1228.77,0.00019726,2]
[346358697,1734910246812,-2065.63,0.00019726,2]
[346358698,1734910246822,-1735.04,0.00019726,2]
[346358699,1734910246832,-1236.5,0.00019726,2]
[346358700,1734910246842,-500.0,0.00019726,2]
[346358701,1734910246852,-500.0,0.00019726,2]
[346358702,1734910246863,-500.0,0.00019726,2]
[346358703,1734910246879,-1439.35,0.00019726,2]
[346358704,1734910246891,-521.61,0.00019726,2]
[346358705,1734910246901,-1319.92,0.00019726,2]
[346358706,1734910246912,-569.63074725,0.00019726,2]
[346358707,1734910246924,-847.19,0.00019726,2]
[346358708,1734910246941,-660.53,0.00019726,2]
[346358709,1734910246951,-3525.17,0.00019726,2]
[346358710,1734910246960,-500.0,0.00019726,2]
[346358711,1734910246970,-697.14,0.00019726,2]
[346358712,1734910246979,-3701.13,0.00019726,2]
[346358713,1734910246989,-599.65,0.00019726,2]
[346358714,1734910246999,-3359.77,0.00019726,2]
[346358715,1734910247009,-1233.21,0.00019726,2]
[346358716,1734910247019,-1487.97,0.00019726,2]
[346358717,1734910247029,-500.0,0.00019726,2]
[346358718,1734910247039,-1846.84,0.00019726,2]
[346358719,1734910247048,-2942.0,0.00019726,2]
[346358720,1734910247057,-500.0,0.00019726,2]
[346358721,1734910247067,-500.0,0.00019726,2]
[346358722,1734910247077,-500.0,0.00019726,2]
[346358723,1734910247087,-1408.82,0.00019726,2]
[346358724,1734910247097,-3144.88,0.00019726,2]
[346358725,1734910247106,-1245.33,0.00019726,2]
[346358726,1734910247116,-615.46,0.00019726,2]
[346358727,1734910247125,-1945.88,0.00019726,2]
[346358728,1734910247135,-2791.43,0.00019726,2]
[346358729,1734910247145,-500.0,0.00019726,2]
[346358730,1734910247154,-5903.83,0.00019726,2]
[346358731,1734910247163,-648.69,0.00019726,2]
[346358732,1734910247172,-5751.07,0.00019726,2]
[346358733,1734910247184,-500.0,0.00019726,2]
[346358734,1734910247194,-1097.63,0.00019726,2]
[346358735,1734910247203,-777.45,0.00019726,2]
[346358736,1734910247213,-500.0,0.00019726,2]
[346358737,1734910247223,-500.0,0.00019726,2]
[346358738,1734910247232,-500.0,0.00019726,2]
[346358739,1734910247243,-1446.64,0.00019726,2]
[346358740,1734910247253,-500.0,0.00019726,2]
[346358741,1734910247262,-1001.92,0.00019726,2]
[346358742,1734910247272,-861.05,0.00019726,2]
[346358743,1734910247282,-500.0,0.00019726,2]
[346358744,1734910247291,-1174.53,0.00019726,2]
[346358745,1734910247301,-166.2598435,0.00019756,2]
[346358746,1734910247311,-109751.92442705,0.000198,2]
[346358747,1734910247320,-273.16101921,0.00019808,2]
[346358748,1734910247330,-150.0,0.00019818,2]
[346358749,1734910247339,-150.0,0.00019818,2]
[346358750,1734910247349,-228.176,0.00019818,2]
[346358751,1734910247358,-150.0,0.00019818,2]
[346358752,1734910247368,-150.899,0.00019818,2]
[346358753,1734910247378,-166.2598435,0.00019828,2]
[346358754,1734910247387,-150.0,0.0001983,2]
[346358755,1734910247397,-565.0,0.0001983,2]
[346358756,1734910247407,-633.0,0.0001983,2]
[346358757,1734910247417,-1898.0,0.0001983,2]
[346358758,1734910247427,-925.0,0.0001983,2]
[346358759,1734910247438,-818.0,0.0001983,2]
[346358760,1734910247448,-3770.0,0.0001983,2]
[346358761,1734910247458,-1256.0,0.0001983,2]
[346358762,1734910247467,-536.0,0.0001983,2]
[346358763,1734910247477,-3682.0,0.0001983,2]
[346358764,1734910247487,-1101.0,0.0001983,2]
[346358765,1734910247495,-3886.0,0.0001983,2]
[346358766,1734910247505,-2010.0,0.0001983,2]
[346358767,1734910247515,-150.0,0.0001983,2]
[346358768,1734910247524,-733.828,0.0001983,2]
[346358769,1734910247534,-1265.0,0.0001983,2]
[346358770,1734910247544,-150.0,0.00019838,2]
[346358771,1734910247553,-729.59,0.00019838,2]
[346358772,1734910247563,-154.0,0.00019838,2]
[346358773,1734910247572,-150.0,0.00019838,2]
[346358774,1734910247581,-152.47,0.00019838,2]
[346358775,1734910247592,-436.21,0.00019838,2]
[346358776,1734910247602,-150.0,0.00019838,2]
[346358777,1734910247612,-976.98,0.00019838,2]
[346358778,1734910247622,-150.0,0.00019838,2]
[346358779,1734910247631,-150.0,0.00019838,2]
[346358780,1734910247641,-150.0,0.00019838,2]
[346358781,1734910247650,-150.0,0.00019838,2]
[346358782,1734910247659,-238.21,0.00019838,2]
[346358783,1734910247669,-500.0,0.00019839,2]
[346358784,1734910247681,-500.0,0.0001984,2]
[346358785,1734910247691,-500.0,0.0001984,2]
[346358786,1734910247701,-2000.0,0.0001984,2]
[346358787,1734910247711,-500.0,0.0001984,2]
[346358788,1734910247721,-500.0,0.0001984,2]
[346358789,1734910247732,-500.0,0.0001984,2]
[346358790,1734910247743,-200.0,0.0001984,2]
[346358791,1734910247752,-23513.99892552,0.00019875,2]
[346358792,1734910247762,-22662.10441643,0.0001988,2]
[346358793,1734910247772,-206.7377509,0.0001989,2]
[346358794,1734910247782,-800.0,0.0001989,2]
[346358795,1734910247792,-100043.8403191,0.00019895,2]
[346358796,1734910247801,-206.73775088,0.00019895,2]
[346358797,1734910247811,-2644.0,0.000199,2]
[346358798,1734910247821,-4978.94755514,0.000199,2]
[346358799,1734910247831,-1340.01178555,0.000199,2]
[346358800,1734910247841,-166.2598435,0.000199,2]
[346358801,1734910247851,-126547.73614575,0.000199,2]
[346358802,1734910247860,-15455.78905919,0.000199,2]
[346358803,1734910247871,-22291.9010912,0.000199,2]
[346358804,1734910247882,-206.73775088,0.000199,2]
[346358805,1734910247892,-171.97,0.00019902,2]
[346358806,1734910247901,-3159.51,0.00019902,2]
[346358807,1734910247911,-201.34,0.00019951,2]
[346358808,1734910247921,-159653.34699418,0.0001996,2]
[346358809,1734910247934,-514.0,0.0001997,2]
[346358810,1734910247944,-3512222.93625049,0.0001998,2]
[346358811,1734910247954,-150.122308,0.0001999,3]
[346358812,1734910247964,-150.122308,0.0001999,2]
[346358813,1734910247974,-21311.78300961,0.0001999,2]
[346358814,1734910247984,-150.122308,0.00019991,2]
[346358815,1734910247994,-150.122308,0.00019991,3]
[346358816,1734910248004,-150.122307,0.00019992,3]
[346358817,1734910248014,-150.122308,0.00019992,2]
[346358818,1734910248025,-157.122307,0.00019993,2]
[346358819,1734910248043,-150.122307,0.00019993,3]
[346358820,1734910248053,-157.122307,0.00019994,2]
[346358821,1734910248063,-157.122307,0.00019994,3]
[346358822,1734910248073,-157.122307,0.00019995,2]
[346358823,1734910248083,-157.122307,0.00019995,3]
[346358824,1734910248093,-157.122307,0.00019996,2]
[346358825,1734910248103,-157.122307,0.00019996,3]
[346358826,1734910248113,-2179.9371702,0.00019996,2]
[346358827,1734910248123,-617.32,0.00019996,2]
[346358828,1734910248133,-1035.1294522,0.00019996,2]
[346358829,1734910248143,-219.3190819,0.00019996,2]
[346358830,1734910248152,-204.603685,0.00019996,2]
[346358831,1734910248162,-1852.8188517,0.00019996,2]
[346358832,1734910248171,-157.122307,0.00019997,2]
[346358833,1734910248183,-157.122307,0.00019997,3]
[346358834,1734910248193,-513026.20560178,0.00019997,2]
[346358835,1734910248203,-157.122307,0.00019998,2]
[346358836,1734910248213,-155.122307,0.00019998,3]
[346358837,1734910248223,-500.0,0.00019998,2]
[346358838,1734910248234,-644.72658387,0.00019998,2]
[346358839,1734910248245,-500.0,0.00019998,2]
[346358840,1734910248254,-500.0,0.00019998,2]
[346358841,1734910248264,-405.45208142,0.00019998,2]
[346358842,1734910248273,-500.0,0.00019998,2]
[346358843,1734910248283,-500.0,0.00019998,2]
[346358844,1734910248293,-1898.77,0.00019998,2]
[346358845,1734910248303,-215.44837044,0.00019998,2]
[346358846,1734910248312,-500.0,0.00019998,2]
[346358847,1734910248323,-500.0,0.00019998,2]
[346358848,1734910248333,-173.00540119,0.00019998,2]
[346358849,1734910248343,-535.81,0.00019998,2]
[346358850,1734910248353,-1963.02,0.00019998,2]
[346358851,1734910248363,-1400.05,0.00019998,2]
[346358852,1734910248373,-658.17,0.00019998,2]
[346358853,1734910248383,-1012.97,0.00019998,2]
[346358854,1734910248393,-751.37,0.00019998,2]
[346358855,1734910248403,-1109.98,0.00019998,2]
[346358856,1734910248413,-2223.54,0.00019998,2]
[346358857,1734910248424,-3070.38,0.00019998,2]
[346358858,1734910248436,-18686.61,0.00019998,2]
[346358859,1734910248451,-1797.13,0.00019998,2]
[346358860,1734910248470,-1045.82,0.00019998,2]
[346358861,1734910248480,-697.43,0.00019998,2]
[346358862,1734910248490,-500.0,0.00019998,2]
[346358863,1734910248499,-2081.76,0.00019998,2]
[346358864,1734910248508,-12680.37,0.00019998,2]
[346358865,1734910248518,-500.0,0.00019998,2]
[346358866,1734910248527,-1090.14,0.00019998,2]
[346358867,1734910248536,-1021.13,0.00019998,2]
[346358868,1734910248546,-886.48,0.00019998,2]
[346358869,1734910248559,-2868.36,0.00019998,2]
[346358870,1734910248569,-300.0,0.00019999,2]
[346358871,1734910248579,-300.0,0.00019999,2]
[346358872,1734910248589,-150.122307,0.00019999,2]
[346358873,1734910248599,-150.122307,0.00019999,3]
[346358874,1734910248608,-150.0,0.00019999,2]
[346358875,1734910248617,-500.0,0.00019999,2]
[346358876,1734910248627,-500.0,0.00019999,2]
[346358877,1734910248636,-1000.0,0.00019999,2]
[346358878,1734910248645,-858.32,0.00019999,2]
[346358879,1734910248655,-555.77,0.00019999,2]
[346358880,1734910248665,-2839.12,0.00019999,2]
[346358881,1734910248675,-1601.49,0.00019999,2]
[346358882,1734910248685,-94880.87474971,0.00019999,2]
[346358883,1734910248696,-11891.09685855,0.0002,2]
[346358884,1734910248705,-1000.0,0.0002,2]
[346358885,1734910248715,-1000.0,0.0002,3]
[346358886,1734910248725,-1000.0,0.0002,4]
[346358887,1734910248735,-1000.0,0.0002,5]
[346358888,1734910248744,-23432539.49218194,0.0002,2]
[346358889,1734910249258,-1878.82684774,0.0002,2]
[346358890,1734910249269,-7987.04499979,0.0002,2]
[346358891,1734910249529,-869.5,0.00019178,2]
[346358892,1734910249539,-768.3787113,0.00019178,2]
[346358893,1734910249550,-728.86710491,0.00019178,2]
[346358894,1734910249573,-320.66418379,0.00019178,2]
[346358895,1734910249583,-185.89111601,0.00019452,2]
[346358896,1734910249595,-683.60888399,0.00019452,2]
[346358897,1734910249605,-1817.91,0.00019452,2]
[346358898,1734910249615,-869.5,0.00019726,2]
[346358899,1734910249625,-1817.91,0.00019726,2]
[346358900,1734910249635,-3173.59345344,0.0002,2]
[346358901,1734910249646,-1464.387994,0.0002,2]
[346358902,1734910249980,-500.0,0.00019178,2]
[346358903,1734910249990,-1170.0,0.0001983,2]
[346358904,1734910249999,-3551.515814,0.0002,2]
[346358905,1734910250017,-467.74999695,0.0002,2]
[346358906,1734910250378,-370.58734935,0.00019178,2]
[346358907,1734910250405,-355.22265065,0.00019178,2]
[346358908,1734910250420,-500.0,0.0001945,2]
[346358909,1734910250438,-725.81,0.00019452,2]
[346358910,1734910250451,-725.81,0.00019726,2]
[346358911,1734910250466,-2324.7718449,0.0002,2]
[346358912,1734910250484,-310791.34394133,0.0002,2]
[346358924,1734911431840,-397.92779334,0.00013,2]
[346358925,1734911431852,-52.07220666,0.00013,2]
[346358926,1734911431861,-182.48,0.00014762,2]
[346358927,1734911431871,-285.31618475,0.00015,2]
[346358928,1734911431913,-214.68381525,0.00015,2]
[346358929,1734911431923,-1021.96,0.0001646,2]
[346358930,1734911431933,-175.42,0.00016712,2]
[346358931,1734911431942,-550.0,0.00017,2]
[346358932,1734911431951,-341.14,0.00017895,2]
[346358933,1734911431960,-250.0,0.00017932,2]
[346358934,1734911431970,-1000.0,0.00018039,2]
[346358935,1734911431979,-250.0,0.00018115,2]
[346358936,1734911431990,-494.37,0.0001835,2]
[346358937,1734911431999,-165.27,0.00018417,2]
[346358938,1734911432009,-801.64,0.00018486,2]
[346358939,1734911432019,-150.0,0.00018493,2]
[346358940,1734911432029,-250.0,0.00018517,2]
[346358941,1734911432038,-564.18433097,0.00018724,2]
[346358942,1734911432050,-457.77566903,0.00018724,2]
[346358943,1734911432060,-504.29,0.00018786,2]
[346358944,1734911432069,-508.44,0.00018824,2]
[346358945,1734911432078,-499.24,0.00018864,2]
[346358946,1734911432087,-1100.0,0.000189,6]
[346358947,1734911432097,-508.22,0.0001894,2]
[346358948,1734911432106,-490.19,0.00018987,2]
[346358949,1734911432115,-302.716,0.00019,2]
[346358950,1734911432124,-600.0,0.00019,2]
[346358951,1734911432133,-2300.0,0.00019,6]
[346358952,1734911432142,-250.0,0.00019014,2]
[346358953,1734911432152,-490.88,0.00019057,2]
[346358954,1734911432162,-183.21808413,0.00019078,2]
[346358955,1734911432171,-508.58,0.00019078,2]
[346358956,1734911432180,-498.64,0.00019078,2]
[346358957,1734911432189,-3046.92815629,0.00019078,2]
[346358958,1734911432200,-6023.72737881,0.00019078,2]
[346358959,1734911432211,-6674.23832769,0.00019078,2]
[346358960,1734911432222,-129.72553721,0.00019078,2]
[346358961,1734911432232,-500.0,0.00019078,2]
[346358962,1734911432241,-1000.0,0.00019078,2]
[346358963,1734911432250,-3400.0,0.000191,6]
[346358964,1734911432260,-159.50120866,0.000191,2]
[346358965,1734911432269,-239.16702753,0.00019178,2]
[346358966,1734911432278,-500.0,0.00019178,2]
[346358967,1734911432287,-316.08974673,0.00019178,2]
[346358969,1734911432299,-202.67275027,0.00019178,2]
[346358971,1734911432308,-336.20724973,0.00019178,2]
[346358974,1734911432330,-271.80558427,0.00019178,2]
[346358976,1734911432339,-155.801012,0.00019178,2]
[346358978,1734911432348,-113.52124701,0.00019178,2]
[346358980,1734911432359,-386.47875299,0.00019178,2]
[346358982,1734911432367,-500.0,0.00019178,2]
[346358984,1734911432377,-500.0,0.00019178,2]
[346358986,1734911432386,-500.0,0.00019178,2]
[346358988,1734911432395,-500.0,0.00019178,2]
[346358990,1734911432405,-500.0,0.00019178,2]
[346358992,1734911432414,-500.0,0.00019178,2]
[346358994,1734911432423,-155.801012,0.00019178,2]
[346358996,1734911432432,-155.695065,0.00019178,2]
[346358998,1734911432441,-500.0,0.00019178,2]
[346359000,1734911432450,-500.0,0.00019178,2]
[346359002,1734911432459,-500.0,0.00019178,2]
[346359004,1734911432468,-502.39789335,0.00019178,2]
[346359006,1734911432480,-409.27202911,0.00019178,2]
[346359008,1734911432490,-275.92958737,0.00019178,2]
[346359010,1734911432500,-500.0,0.00019178,2]
[346359012,1734911432509,-500.0,0.00019178,2]
[346359014,1734911432519,-500.0,0.00019178,2]
[346359017,1734911432528,-500.0,0.00019178,2]
[346359020,1734911432537,-500.0,0.00019178,2]
[346359023,1734911432546,-499.17950301,0.00019178,2]
[346359026,1734911432556,-500.0,0.00019178,2]
[346359029,1734911432565,-500.0,0.00019178,2]
[346359032,1734911432575,-500.0,0.00019178,2]
[346359035,1734911432584,-500.0,0.00019178,2]
[346359038,1734911432593,-500.0,0.00019178,2]
[346359041,1734911432603,-605.41593061,0.00019178,2]
[346359044,1734911432612,-500.0,0.00019178,2]
[346359047,1734911432621,-500.0,0.00019178,2]
[346359050,1734911432630,-154.749001,0.00019178,2]
[346359053,1734911432639,-500.0,0.00019178,2]
[346359055,1734911432649,-500.0,0.00019178,2]
[346359057,1734911432659,-575.15,0.00019178,2]
[346359059,1734911432668,-500.0,0.00019178,2]
[346359061,1734911432677,-500.0,0.00019178,2]
[346359062,1734911432687,-500.0,0.00019178,2]
[346359064,1734911432696,-500.0,0.00019178,2]
[346359066,1734911432706,-502.27494826,0.00019178,2]
[346359068,1734911432715,-500.0,0.00019178,2]
[346359070,1734911432724,-500.0,0.00019178,2]
[346359072,1734911432733,-500.0,0.00019178,2]
[346359074,1734911432742,-500.0,0.00019178,2]
[346359076,1734911432751,-500.0,0.00019178,2]
[346359078,1734911432761,-500.0,0.00019178,2]
[346359080,1734911432770,-500.0,0.00019178,2]
[346359082,1734911432779,-500.0,0.00019178,2]
[346359084,1734911432788,-500.0,0.00019178,2]
[346359086,1734911432797,-500.0,0.00019178,2]
[346359088,1734911432807,-500.0,0.00019178,2]
[346359089,1734911432816,-500.0,0.00019178,2]
[346359091,1734911432825,-500.0,0.00019178,2]
[346359093,1734911432834,-500.0,0.00019178,2]
[346359095,1734911432843,-500.0,0.00019178,2]
[346359096,1734911432853,-1740.53,0.00019178,2]
[346359097,1734911432863,-154.749,0.00019178,2]
[346359098,1734911432872,-500.0,0.00019178,2]
[346359099,1734911432882,-155.801012,0.00019178,2]
[346359100,1734911432891,-155.695065,0.00019178,2]
[346359101,1734911432901,-428.34791538,0.00019178,2]
[346359102,1734911432913,-459.69755095,0.00019178,2]
[346359103,1734911432922,-500.0,0.00019178,2]
[346359104,1734911432931,-500.0,0.00019178,2]
[346359105,1734911432940,-500.0,0.00019178,2]
[346359106,1734911432949,-500.0,0.00019178,2]
[346359107,1734911432958,-500.0,0.00019178,2]
[346359108,1734911432967,-500.0,0.00019178,2]
[346359109,1734911432976,-417.12,0.00019178,2]
[346359110,1734911432986,-598.899999,0.00019178,2]
[346359111,1734911432995,-161.66634504,0.00019178,2]
[346359113,1734911433004,-500.0,0.00019178,2]
[346359115,1734911433013,-500.0,0.00019178,2]
[346359117,1734911433022,-500.0,0.00019178,2]
[346359118,1734911433031,-500.0,0.00019178,2]
[346359120,1734911433041,-500.0,0.00019178,2]
[346359123,1734911433050,-500.0,0.00019178,2]
[346359124,1734911433059,-500.0,0.00019178,2]
[346359126,1734911433069,-500.0,0.00019178,2]
[346359128,1734911433078,-500.0,0.00019178,2]
[346359130,1734911433087,-500.0,0.00019178,2]
[346359132,1734911433096,-500.0,0.00019178,2]
[346359134,1734911433106,-500.0,0.00019178,2]
[346359136,1734911433115,-500.0,0.00019178,2]
[346359138,1734911433123,-500.0,0.00019178,2]
[346359139,1734911433132,-286.34,0.00019178,2]
[346359141,1734911433142,-695.45,0.00019178,2]
[346359143,1734911433151,-500.0,0.00019178,2]
[346359145,1734911433161,-500.0,0.00019178,2]
[346359147,1734911433171,-500.0,0.00019178,2]
[346359149,1734911433180,-500.0,0.00019178,2]
[346359151,1734911433188,-500.0,0.00019178,2]
[346359153,1734911433198,-500.0,0.00019178,2]
[346359155,1734911433207,-500.0,0.00019178,2]
[346359157,1734911433216,-500.0,0.00019178,2]
[346359159,1734911433226,-500.0,0.00019178,2]
[346359162,1734911433235,-500.0,0.00019178,2]
[346359164,1734911433244,-500.0,0.00019178,2]
[346359166,1734911433253,-500.0,0.00019178,2]
[346359168,1734911433263,-500.0,0.00019178,2]
[346359170,1734911433272,-500.0,0.00019178,2]
[346359172,1734911433281,-500.0,0.00019178,2]
[346359174,1734911433290,-500.0,0.00019178,2]
[346359176,1734911433299,-500.0,0.00019178,2]
[346359178,1734911433308,-500.0,0.00019178,2]
[346359180,1734911433317,-500.0,0.00019178,2]
[346359182,1734911433326,-500.0,0.00019178,2]
[346359184,1734911433336,-500.0,0.00019178,2]
[346359186,1734911433345,-500.0,0.00019178,2]
[346359188,1734911433354,-500.0,0.00019178,2]
[346359190,1734911433363,-500.0,0.00019178,2]
[346359192,1734911433372,-500.0,0.00019178,2]
[346359194,1734911433381,-500.0,0.00019178,2]
[346359196,1734911433390,-500.0,0.00019178,2]
[346359198,1734911433400,-500.0,0.00019178,2]
[346359200,1734911433411,-500.0,0.00019178,2]
[346359202,1734911433421,-500.0,0.00019178,2]
[346359204,1734911433430,-500.0,0.00019178,2]
[346359205,1734911433439,-500.0,0.00019178,2]
[346359207,1734911433448,-500.0,0.00019178,2]
[346359209,1734911433458,-409.40874602,0.00019178,2]
[346359211,1734911433468,-571.3,0.00019178,2]
[346359213,1734911433478,-500.0,0.00019178,2]
[346359214,1734911433490,-502.07806669,0.00019178,2]
[346359217,1734911433500,-500.0,0.00019178,2]
[346359218,1734911433510,-500.0,0.00019178,2]
[346359220,1734911433520,-500.0,0.00019178,2]
[346359221,1734911433529,-501.44331466,0.00019178,2]
[346359223,1734911433539,-500.0,0.00019178,2]
[346359225,1734911433549,-500.0,0.00019178,2]
[346359226,1734911433559,-500.0,0.00019178,2]
[346359227,1734911433568,-500.0,0.00019178,2]
[346359228,1734911433578,-500.0,0.00019178,2]
[346359229,1734911433588,-500.0,0.00019178,2]
[346359230,1734911433597,-500.0,0.00019178,2]
[346359231,1734911433607,-500.0,0.00019178,2]
[346359232,1734911433617,-500.0,0.00019178,2]
[346359233,1734911433626,-500.0,0.00019178,2]
[346359234,1734911433636,-500.49799565,0.00019178,2]
[346359235,1734911433645,-500.0,0.00019178,2]
[346359236,1734911433655,-500.0,0.00019178,2]
[346359237,1734911433665,-500.0,0.00019178,2]
[346359238,1734911433675,-500.0,0.00019178,2]
[346359239,1734911433685,-500.0,0.00019178,2]
[346359240,1734911433694,-500.0,0.00019178,2]
[346359241,1734911433704,-525.63,0.00019178,2]
[346359242,1734911433714,-500.0,0.00019178,2]
[346359243,1734911433723,-500.0,0.00019178,2]
[346359244,1734911433733,-500.0,0.00019178,2]
[346359245,1734911433742,-500.0,0.00019178,2]
[346359246,1734911433751,-499.5157266,0.00019178,2]
[346359247,1734911433761,-500.0,0.00019178,2]
[346359248,1734911433771,-503.01373592,0.00019178,2]
[346359249,1734911433782,-500.0,0.00019178,2]
[346359250,1734911433792,-500.0,0.00019178,2]
[346359251,1734911433802,-500.0,0.00019178,2]
[346359252,1734911433812,-500.0,0.00019178,2]
[346359253,1734911433821,-500.0,0.00019178,2]
[346359254,1734911433831,-500.0,0.00019178,2]
[346359255,1734911433841,-500.0,0.00019178,2]
[346359256,1734911433851,-500.0,0.00019178,2]
[346359257,1734911433860,-575.58,0.00019178,2]
[346359258,1734911433869,-500.0,0.00019178,2]
[346359259,1734911433879,-500.0,0.00019178,2]
[346359260,1734911433888,-500.0,0.00019178,2]
[346359261,1734911433898,-500.0,0.00019178,2]
[346359262,1734911433909,-500.0,0.00019178,2]
[346359263,1734911433918,-500.0,0.00019178,2]
[346359264,1734911433928,-500.0,0.00019178,2]
[346359265,1734911433937,-653.95,0.00019178,2]
[346359266,1734911433947,-500.0,0.00019178,2]
[346359267,1734911433956,-500.0,0.00019178,2]
[346359268,1734911433966,-500.0,0.00019178,2]
[346359269,1734911433975,-500.0,0.00019178,2]
[346359270,1734911433985,-500.0,0.00019178,2]
[346359271,1734911433995,-500.0,0.00019178,2]
[346359272,1734911434005,-500.0,0.00019178,2]
[346359273,1734911434014,-500.0,0.00019178,2]
[346359274,1734911434023,-778.07,0.00019178,2]
[346359275,1734911434033,-500.0,0.00019178,2]
[346359276,1734911434042,-500.0,0.00019178,2]
[346359277,1734911434052,-500.0,0.00019178,2]
[346359278,1734911434061,-500.0,0.00019178,2]